bitfinex/quotes_BTCUSD_20240611
["timestamp","ask_amount","ask_price","bid_price","bid_amount"]
[1718127752530,0.150382,66497.0,66491.0,0.37509138]
[1718127752723,0.150382,66497.0,66491.0,0.3748]
[1718127752923,0.149382,66497.0,66492.0,0.09132246]
[1718127753124,0.149382,66497.0,66493.0,0.08501045]
[1718127753713,0.149382,66497.0,66491.0,0.3748]
[1718127753714,0.149382,66497.0,66494.0,0.00631201]
[1718127753971,0.149382,66497.0,66491.0,0.3768]
[1718127754175,0.149382,66497.0,66492.0,0.09033091]
[1718127754402,0.149382,66497.0,66493.0,0.0840189]
[1718127755041,0.149382,66497.0,66494.0,0.00631201]
[1718127755465,0.149382,66497.0,66491.0,0.3768]
[1718127755673,0.149382,66497.0,66495.0,0.00631201]
[1718127755843,0.149382,66497.0,66491.0,0.3768]
[1718127755990,0.149382,66497.0,66496.0,0.00631201]
[1718127756195,0.149382,66497.0,66493.0,0.002]
[1718127756423,0.01,66495.0,66493.0,0.002]
[1718127756848,0.01,66495.0,66490.0,0.00085]
[1718127757052,0.01,66495.0,66491.0,0.08760131]
[1718127757271,0.01,66495.0,66492.0,0.08560131]
[1718127757725,0.149382,66497.0,66492.0,0.08560131]
[1718127757943,0.149382,66497.0,66490.0,0.00085]
[1718127757944,0.149382,66497.0,66493.0,0.08560131]
[1718127758153,0.149382,66497.0,66490.0,0.00085]
[1718127758365,0.149382,66497.0,66493.0,0.002]
[1718127759024,0.0717,66494.0,66493.0,0.002]
[1718127759225,0.0717,66494.0,66493.0,0.09225453]
[1718127759439,0.0717,66494.0,66491.0,0.09225453]
[1718127759651,0.0717,66494.0,66493.0,0.002]
[1718127759861,0.0717,66494.0,66493.0,0.09416522]
[1718127760063,0.0717,66494.0,66493.0,0.09216522]
[1718127760313,0.0717,66494.0,66493.0,0.09416522]
[1718127761373,0.0717,66494.0,66493.0,0.10048103]
[1718127762456,0.0717,66494.0,66493.0,0.10063601]
[1718127764197,0.0717,66494.0,66493.0,0.09738596]
[1718127766310,0.0717,66494.0,66493.0,0.09938596]
[1718127766745,0.0717,66494.0,66493.0,0.09738596]
[1718127766957,0.0717,66494.0,66493.0,0.00586468]
[1718127767155,0.0717,66494.0,66493.0,0.00786468]
[1718127769465,0.0717,66494.0,66493.0,0.00871468]
[1718127770348,0.150385,66496.0,66493.0,0.00871468]
[1718127772284,0.150385,66496.0,66493.0,0.00671468]
[1718127772731,0.150385,66496.0,66493.0,0.00871468]
[1718127774309,0.150385,66496.0,66494.0,0.09057605]
[1718127774742,0.150385,66496.0,66495.0,0.00586365]
[1718127774918,0.150385,66496.0,66495.0,0.0964397]
[1718127775780,0.150385,66496.0,66495.0,0.09683551]
[1718127776252,0.00093501,66497.0,66495.0,0.09712689]
[1718127776511,0.00093501,66497.0,66495.0,0.09683551]
[1718127776816,0.00093501,66497.0,66496.0,0.33097186]
[1718127777349,0.00093501,66497.0,66496.0,0.87283082]
[1718127777566,0.00093501,66497.0,66496.0,1.21364193]
[1718127777787,0.00093501,66497.0,66496.0,1.10116672]
[1718127779746,0.00093501,66497.0,66496.0,1.07826898]
[1718127779943,0.00093501,66497.0,66496.0,1.0872811]
[1718127780140,0.00093501,66497.0,66496.0,1.07826898]
[1718127780456,0.00093501,66497.0,66496.0,0.98929712]
[1718127780891,0.00093501,66497.0,66496.0,0.90075896]
[1718127782553,0.00093501,66497.0,66496.0,1.00395923]
[1718127785376,0.00093501,66497.0,66496.0,1.0040266]
[1718127785587,0.00093501,66497.0,66496.0,1.00431798]
[1718127786233,0.00093501,66497.0,66496.0,1.0040266]
[1718127786466,0.00093501,66497.0,66496.0,1.00431798]
[1718127786899,0.00093501,66497.0,66496.0,1.0040266]
[1718127787098,0.00093501,66497.0,66496.0,0.11142267]
[1718127787241,0.45129497,66497.0,66496.0,0.11142267]
[1718127787472,0.44129497,66497.0,66496.0,0.002]
[1718127788272,0.44129497,66497.0,66493.0,0.00085]
[1718127788657,0.0717,66494.0,66493.0,0.00085]
[1718127790534,0.0717,66494.0,66493.0,0.00285]
[1718127791799,0.0717,66494.0,66493.0,0.00085]
[1718127792271,0.0817,66494.0,66493.0,0.00085]
[1718127792482,0.232089,66494.0,66493.0,0.00085]
[1718127794034,0.150389,66494.0,66493.0,0.00285]
[1718127794259,0.222089,66494.0,66493.0,0.00285]
[1718127794687,0.222089,66494.0,66493.0,0.00085]
[1718127795103,0.222089,66494.0,66493.0,0.00285]
[1718127795523,0.150389,66494.0,66493.0,0.00285]
[1718127795752,0.222089,66494.0,66493.0,0.00285]
[1718127799322,0.0717,66494.0,66493.0,0.00285]
[1718127805108,0.07215996,66496.0,66493.0,0.00285]
[1718127805313,0.51951801,66497.0,66493.0,0.00285]
[1718127805314,0.0717,66494.0,66493.0,0.00285]
[1718127805930,0.0717,66494.0,66493.0,0.00085]
[1718127806360,0.0717,66494.0,66493.0,0.00285]
[1718127806717,0.0717,66494.0,66493.0,0.00085]
[1718127807159,0.0717,66494.0,66493.0,0.00285]
[1718127808194,0.15131801,66497.0,66493.0,0.00314138]
[1718127808195,0.00093501,66497.0,66493.0,0.00314138]
[1718127808425,0.00093501,66497.0,66493.0,0.00867143]
[1718127808888,0.00093501,66497.0,66494.0,0.07906673]
[1718127809118,0.00093501,66497.0,66495.0,0.14461131]
[1718127809340,0.00093501,66497.0,66496.0,0.07905659]
[1718127809563,0.00093501,66497.0,66496.0,0.22337652]
[1718127809780,0.00093501,66497.0,66496.0,0.22919795]
[1718127810210,0.00093501,66497.0,66496.0,0.15014136]
[1718127810652,0.00093501,66497.0,66496.0,0.24609162]
[1718127811590,0.00093501,66497.0,66496.0,0.246383]
[1718127812243,0.00093501,66497.0,66496.0,0.248383]
[1718127812868,0.00093501,66497.0,66496.0,0.760967]
[1718127813076,0.00093501,66497.0,66496.0,1.11797021]
[1718127813540,0.00093501,66497.0,66496.0,1.02750479]
[1718127813758,0.00093501,66497.0,66496.0,1.11749188]
[1718127815076,0.00093501,66497.0,66496.0,1.11290937]
[1718127815294,0.00093501,66497.0,66496.0,1.02303049]
[1718127815921,0.00093501,66497.0,66496.0,1.02103049]
[1718127816146,0.00093501,66497.0,66496.0,0.92555856]
[1718127816361,0.00093501,66497.0,66496.0,1.02458811]
[1718127817459,0.00093501,66497.0,66496.0,1.09199351]
[1718127817673,0.00093501,66497.0,66496.0,1.02458811]
[1718127818105,0.00093501,66497.0,66496.0,1.0919897]
[1718127818480,0.00093501,66497.0,66496.0,1.08616827]
[1718127818707,0.00093501,66497.0,66496.0,1.09207137]
[1718127818916,0.00093501,66497.0,66496.0,1.11454866]
[1718127819128,0.00093501,66497.0,66496.0,1.02466978]
[1718127819570,0.00093501,66497.0,66496.0,1.03466978]
[1718127819789,0.00093501,66497.0,66496.0,1.12089244]
[1718127820673,0.00093501,66497.0,66496.0,1.11719974]
[1718127820894,0.00093501,66497.0,66496.0,1.41796874]
[1718127821587,0.00093501,66497.0,66496.0,1.41949275]
[1718127822661,0.00093501,66497.0,66496.0,1.41749275]
[1718127822878,0.00093501,66497.0,66496.0,1.43536787]
[1718127823091,0.00093501,66497.0,66496.0,1.43736787]
[1718127823506,0.00093501,66497.0,66496.0,1.42736787]
[1718127823972,0.00093501,66497.0,66496.0,1.42753974]
[1718127824187,0.00093501,66497.0,66496.0,1.43753974]
[1718127824402,0.00093501,66497.0,66496.0,1.12677074]
[1718127824612,0.00093501,66497.0,66496.0,0.37539261]
[1718127824846,0.00093501,66497.0,66496.0,0.26823751]
[1718127825290,0.00093501,66497.0,66496.0,0.26623751]
[1718127825457,0.00093501,66497.0,66496.0,0.26823751]
[1718127826090,0.00093501,66497.0,66496.0,0.26623751]
[1718127826257,0.00093501,66497.0,66496.0,0.26823751]
[1718127826832,0.00093501,66497.0,66496.0,0.26623751]
[1718127827186,0.00093501,66497.0,66496.0,0.41662151]
[1718127828183,0.00093501,66497.0,66496.0,0.41862151]
[1718127828401,0.00093501,66497.0,66496.0,0.65862151]
[1718127828818,0.00064363,66497.0,66496.0,0.65862151]
[1718127830570,0.00064363,66497.0,66496.0,0.9243434]
[1718127830780,0.00064363,66497.0,66496.0,1.02429527]
[1718127830999,0.00064363,66497.0,66496.0,1.22501049]
[1718127831214,0.00064363,66497.0,66496.0,1.52577949]
[1718127831839,0.00064363,66497.0,66496.0,1.52377949]
[1718127832043,0.00064363,66497.0,66496.0,1.4340737]
[1718127832250,0.00064363,66497.0,66496.0,1.4360737]
[1718127832702,0.00064363,66497.0,66496.0,1.4340737]
[1718127833123,0.00064363,66497.0,66496.0,1.4360737]
[1718127833317,0.00064363,66497.0,66496.0,1.51574726]
[1718127833534,0.00064363,66497.0,66496.0,1.4240737]
[1718127833736,0.00064363,66497.0,66496.0,1.4340737]
[1718127835011,0.00064363,66497.0,66496.0,1.4360737]
[1718127835442,0.00064363,66497.0,66496.0,1.94897494]
[1718127835657,0.00064363,66497.0,66496.0,2.4606117]
[1718127835874,0.00064363,66497.0,66496.0,2.85301287]
[1718127836098,0.00093501,66514.0,66513.0,0.52063738]
[1718127836309,0.00093501,66514.0,66513.0,0.83660918]
[1718127836518,0.00093501,66514.0,66513.0,0.84225881]
[1718127836994,0.00093501,66514.0,66513.0,0.98230694]
[1718127837220,0.00093501,66514.0,66513.0,1.0821806]
[1718127838716,0.00093501,66514.0,66513.0,1.39407041]
[1718127839138,0.00093501,66514.0,66513.0,1.54084083]
[1718127839356,0.00093501,66514.0,66513.0,1.66801596]
[1718127839563,0.00093501,66514.0,66513.0,1.96870896]
[1718127839768,0.00093501,66514.0,66513.0,1.98970896]
[1718127839971,0.00093501,66514.0,66513.0,2.02255332]
[1718127840291,0.00093501,66514.0,66513.0,1.21646732]
[1718127840518,0.00093501,66514.0,66513.0,1.27165054]
[1718127840911,0.00093501,66514.0,66513.0,1.18337741]
[1718127841132,0.00093501,66514.0,66513.0,1.27167212]
[1718127841306,0.00093501,66514.0,66513.0,1.17060165]
[1718127841511,0.00093501,66514.0,66513.0,1.27550501]
[1718127841717,0.00093501,66514.0,66513.0,1.24855237]
[1718127841909,0.00093501,66514.0,66513.0,1.1175103]
[1718127842117,0.00093501,66514.0,66513.0,1.13523223]
[1718127842333,0.00093501,66514.0,66513.0,1.20493223]
[1718127843328,0.00093501,66514.0,66513.0,1.20693223]
[1718127843749,0.00093501,66514.0,66513.0,0.83693223]
[1718127843964,0.00093501,66514.0,66513.0,0.64721892]
[1718127845002,0.00093501,66514.0,66513.0,0.11055299]
[1718127845218,0.37443501,66514.0,66513.0,0.11055299]
[1718127845434,0.37443501,66514.0,66513.0,0.11255299]
[1718127845662,0.37443501,66514.0,66513.0,0.10690336]
[1718127845885,0.52477901,66514.0,66513.0,0.00555878]
[1718127846322,0.37443501,66514.0,66513.0,0.002]
[1718127846779,0.37443501,66514.0,66510.0,0.10884232]
[1718127847020,0.38443501,66514.0,66513.0,0.00555878]
[1718127847241,0.38443501,66514.0,66497.0,0.00029138]
[1718127847242,0.3725,66511.0,66497.0,0.00029138]
[1718127847457,0.24,66508.0,66498.0,0.14461131]
[1718127847660,0.24,66508.0,66500.0,0.150374]
[1718127847864,0.24,66508.0,66501.0,0.10885634]
[1718127848287,0.24,66508.0,66502.0,0.00563392]
[1718127848719,0.24,66508.0,66503.0,0.10885634]
[1718127849152,0.24,66508.0,66504.0,0.11449026]
[1718127849405,0.24,66508.0,66504.0,0.00563392]
[1718127849823,0.24,66508.0,66502.0,0.002]
[1718127850064,0.24,66508.0,66505.0,0.00563392]
[1718127850283,0.150349,66512.0,66502.0,0.002]
[1718127850284,0.1267,66507.0,66502.0,0.002]
[1718127850493,0.2534,66506.0,66503.0,0.11064367]
[1718127850940,0.01,66504.0,66503.0,0.11064367]
[1718127851589,0.07309497,66514.0,66496.0,0.24]
[1718127851590,0.01,66503.0,66496.0,0.24]
[1718127851799,0.3811,66502.0,66497.0,0.1108217]
[1718127852495,0.3811,66502.0,66496.0,0.24]
[1718127852710,0.3811,66502.0,66497.0,0.11083467]
[1718127853393,0.3811,66502.0,66496.0,0.24029138]
[1718127853619,0.3811,66502.0,66497.0,0.11002396]
[1718127853852,0.3811,66502.0,66497.0,0.11570374]
[1718127854078,0.3681,66507.0,66504.0,0.00029138]
[1718127854300,0.1177,66507.0,66506.0,0.00029138]
[1718127854552,0.4793,66510.0,66509.0,0.00029138]
[1718127855020,0.4793,66510.0,66509.0,0.00567978]
[1718127855242,0.4793,66510.0,66509.0,0.24029138]
[1718127855465,0.4793,66510.0,66509.0,0.24597116]
[1718127856151,0.4793,66510.0,66509.0,0.24567978]
[1718127856591,0.4793,66510.0,66509.0,0.24597116]
[1718127856809,0.00093501,66514.0,66513.0,0.15063738]
[1718127857082,0.00093501,66514.0,66513.0,0.29495731]
[1718127857280,0.00093501,66514.0,66513.0,0.30058214]
[1718127858203,0.00093501,66514.0,66513.0,0.35541602]
[1718127858472,0.00093501,66514.0,66513.0,0.92403296]
[1718127858653,0.00093501,66514.0,66513.0,0.96163263]
[1718127858914,0.00064363,66514.0,66513.0,0.95963263]
[1718127859350,0.00064363,66514.0,66513.0,1.06365149]
[1718127859540,0.00064363,66514.0,66513.0,0.95163263]
[1718127859977,0.00064363,66514.0,66513.0,0.86332526]
[1718127860394,0.00064363,66514.0,66513.0,0.94054925]
[1718127860595,0.00064363,66514.0,66513.0,0.93054925]
[1718127861011,0.00064363,66514.0,66513.0,0.73490613]
[1718127861223,0.00064363,66514.0,66513.0,0.60980613]
[1718127861457,0.00064363,66514.0,66513.0,0.15194476]
[1718127861659,0.25134363,66514.0,66513.0,0.00762483]
[1718127861876,0.25134363,66514.0,66513.0,0.00562483]
[1718127862304,0.25134363,66514.0,66513.0,0.002]
[1718127862728,0.25134363,66514.0,66513.0,0.00551894]
[1718127862936,0.25134363,66514.0,66510.0,0.00029138]
[1718127863140,0.25134363,66514.0,66508.0,0.150357]
[1718127863141,0.25134363,66514.0,66513.0,0.00751894]
[1718127863385,0.25134363,66514.0,66513.0,0.002]
[1718127863608,0.25134363,66514.0,66513.0,0.00751894]
[1718127863840,0.25134363,66514.0,66513.0,0.002]
[1718127864024,0.25134363,66514.0,66513.0,0.00751894]
[1718127864258,0.25134363,66514.0,66513.0,0.002]
[1718127864486,0.25134363,66514.0,66513.0,0.00751894]
[1718127864751,0.25134363,66514.0,66513.0,0.002]
[1718127864977,0.25134363,66514.0,66506.0,0.00029138]
[1718127865205,0.25134363,66514.0,66510.0,0.002]
[1718127865832,0.25134363,66514.0,66511.0,0.00551894]
[1718127866077,0.25134363,66514.0,66513.0,0.002]
[1718127866486,0.25134363,66514.0,66513.0,0.00555367]
[1718127866692,0.25134363,66514.0,66507.0,0.14431993]
[1718127866909,0.25134363,66514.0,66510.0,0.002]
[1718127867542,0.25134363,66514.0,66511.0,0.00555367]
[1718127869000,0.25105225,66514.0,66511.0,0.00555367]
[1718127869227,0.25105225,66514.0,66513.0,0.002]
[1718127869634,0.25105225,66514.0,66513.0,0.00755367]
[1718127869865,0.25105225,66514.0,66508.0,0.00029138]
[1718127870074,0.25105225,66514.0,66513.0,0.00555367]
[1718127870300,0.25105225,66514.0,66511.0,0.002]
[1718127870491,0.25105225,66514.0,66513.0,0.00555367]
[1718127870703,0.25105225,66514.0,66508.0,0.00029138]
[1718127870914,0.25105225,66514.0,66507.0,0.14431993]
[1718127871536,0.25105225,66514.0,66508.0,0.00555367]
[1718127872359,0.25105225,66514.0,66513.0,0.002]
[1718127872807,0.25105225,66514.0,66508.0,0.24]
[1718127873046,0.25105225,66514.0,66513.0,0.00555367]
[1718127873272,0.25105225,66514.0,66508.0,0.242]
[1718127873479,0.25105225,66514.0,66513.0,0.00555367]
[1718127873750,0.25105225,66514.0,66508.0,0.24]
[1718127873956,0.25105225,66514.0,66507.0,0.14431993]
[1718127873957,0.25105225,66514.0,66513.0,0.00755367]
[1718127874198,0.25105225,66514.0,66513.0,0.002]
[1718127874428,0.25105225,66514.0,66513.0,0.00755367]
[1718127874617,0.25105225,66514.0,66513.0,0.002]
[1718127874866,0.25105225,66514.0,66513.0,0.00755367]
[1718127875055,0.25105225,66514.0,66513.0,0.002]
[1718127875345,0.32321221,66514.0,66513.0,0.00555367]
[1718127875585,0.25105225,66514.0,66513.0,0.00555367]
[1718127875791,0.25105225,66514.0,66508.0,0.002]
[1718127876399,0.25105225,66514.0,66507.0,0.00029138]
[1718127876629,0.25105225,66514.0,66513.0,0.002]
[1718127877237,0.25105225,66514.0,66507.0,0.00029138]
[1718127877470,0.25105225,66514.0,66506.0,0.00029138]
[1718127877698,0.25105225,66514.0,66508.0,0.00584918]
[1718127877940,0.25105225,66514.0,66508.0,0.00029138]
[1718127878157,0.25105225,66514.0,66509.0,0.0055578]
[1718127878612,0.25105225,66514.0,66509.0,0.00584918]
[1718127878832,0.25076087,66514.0,66509.0,0.00584918]
[1718127879049,0.25076087,66514.0,66509.0,0.0055578]
[1718127879295,0.25076087,66514.0,66509.0,0.0075578]
[1718127879509,0.25076087,66514.0,66509.0,0.002]
[1718127879718,0.25076087,66514.0,66510.0,0.0055578]
[1718127880359,0.26076087,66514.0,66510.0,0.0055578]
[1718127881083,0.25076087,66514.0,66510.0,0.0055578]
[1718127881366,0.25076087,66514.0,66509.0,0.002]
[1718127882259,0.25076087,66514.0,66504.0,0.00029138]
[1718127882474,0.25076087,66514.0,66505.0,0.14431993]
[1718127882691,0.25076087,66514.0,66510.0,0.002]
[1718127883157,0.25076087,66514.0,66505.0,0.14461131]
[1718127883389,0.25076087,66514.0,66511.0,0.00562239]
[1718127883614,0.25076087,66514.0,66509.0,0.002]
[1718127883842,0.25076087,66514.0,66512.0,0.00562239]
[1718127884065,0.25076087,66514.0,66505.0,0.14461131]
[1718127884282,0.25076087,66514.0,66510.0,0.002]
[1718127884957,0.25076087,66514.0,66511.0,0.00562239]
[1718127886144,0.25076087,66514.0,66512.0,0.002]
[1718127886631,0.25076087,66514.0,66506.0,0.00029138]
[1718127886842,0.25076087,66514.0,66511.0,0.002]
[1718127887347,0.25076087,66514.0,66506.0,0.00029138]
[1718127887577,0.25076087,66514.0,66512.0,0.00563149]
[1718127887832,0.25076087,66514.0,66512.0,0.002]
[1718127888711,0.25046928,66514.0,66512.0,0.002]
[1718127888963,0.25046928,66514.0,66509.0,0.00029138]
[1718127889402,0.25046928,66514.0,66511.0,0.002]
[1718127890062,0.25046928,66514.0,66512.0,0.00563149]
[1718127890508,0.25046928,66514.0,66509.0,0.002]
[1718127890980,0.25046928,66514.0,66510.0,0.00563149]
[1718127891399,0.25046928,66514.0,66505.0,0.30369374]
[1718127891624,0.25046928,66514.0,66511.0,0.00563149]
[1718127891849,0.25046928,66514.0,66505.0,0.30369374]
[1718127892123,0.25046928,66514.0,66512.0,0.00563149]
[1718127892336,0.25046928,66514.0,66505.0,0.30369374]
[1718127892774,0.25046928,66514.0,66506.0,0.00563149]
[1718127894496,0.26046928,66514.0,66511.0,0.002]
[1718127894726,0.25046928,66514.0,66511.0,0.002]
[1718127894934,0.25046928,66514.0,66503.0,0.07197096]
[1718127895141,0.25046928,66514.0,66503.0,0.21629089]
[1718127895351,0.25046928,66514.0,66506.0,0.002]
[1718127895786,0.25046928,66514.0,66503.0,0.21629089]
[1718127896013,0.25046928,66514.0,66507.0,0.00564218]
[1718127896191,0.25046928,66514.0,66511.0,0.002]
[1718127896471,0.40081428,66514.0,66511.0,0.002]
[1718127897581,0.40081428,66514.0,66504.0,0.00029138]
[1718127897796,0.40081428,66514.0,66505.0,0.00029138]
[1718127898011,0.40081428,66514.0,66506.0,0.002]
[1718127898232,0.40081428,66514.0,66507.0,0.00029138]
[1718127898445,0.40081428,66514.0,66508.0,0.00029138]
[1718127899098,0.40081428,66514.0,66509.0,0.00564218]
[1718127899492,0.40174929,66514.0,66509.0,0.00564218]
[1718127900113,0.40174929,66514.0,66506.0,0.00085]
[1718127900412,0.40174929,66514.0,66510.0,0.00564982]
[1718127900619,0.40174929,66514.0,66507.0,0.00564982]
[1718127900821,0.40174929,66514.0,66507.0,0.002]
[1718127901046,0.0716,66512.0,66508.0,0.00564982]
[1718127901728,0.0716,66512.0,66510.0,0.002]
[1718127902824,0.0716,66512.0,66506.0,0.00085]
[1718127903259,0.0716,66512.0,66507.0,0.00564982]
[1718127904198,0.0716,66512.0,66508.0,0.002]
[1718127904199,0.0816,66512.0,66508.0,0.002]
[1718127904465,0.14375996,66509.0,66508.0,0.002]
[1718127904689,0.14375996,66509.0,66506.0,0.00085]
[1718127905133,0.14375996,66509.0,66507.0,0.002]
[1718127905361,0.01,66508.0,66507.0,0.002]
[1718127905582,0.52096,66507.0,66506.0,0.00085]
[1718127905797,0.51096,66507.0,66506.0,0.00085]
[1718127906024,0.58256,66507.0,66506.0,0.00085]
[1718127906472,0.3606,66507.0,66506.0,0.00085]
[1718127906722,0.4322,66507.0,66506.0,0.00085]
[1718127908689,0.3606,66507.0,66506.0,0.00085]
[1718127909153,0.3606,66507.0,66506.0,0.00285]
[1718127913862,0.3606,66507.0,66506.0,0.00853513]
[1718127914072,0.3606,66507.0,66506.0,0.00285]
[1718127914272,0.3606,66507.0,66506.0,0.00853513]
[1718127914472,0.3606,66507.0,66506.0,0.00285]
[1718127914692,0.99108101,66514.0,66507.0,0.00029138]
[1718127914913,0.07215996,66513.0,66508.0,0.08710827]
[1718127915153,0.08215996,66513.0,66509.0,0.08142314]
[1718127915364,0.23250696,66513.0,66508.0,0.05073893]
[1718127915582,0.23250696,66513.0,66509.0,0.0802289]
[1718127915583,0.22250696,66513.0,66509.0,0.0802289]
[1718127915819,0.01,66512.0,66509.0,0.00568513]
[1718127916043,0.3595,66511.0,66509.0,0.00568513]
[1718127916246,0.3595,66511.0,66507.0,0.002]
[1718127916453,0.35920862,66511.0,66508.0,0.08023026]
[1718127916672,0.35920862,66511.0,66508.0,0.08591539]
[1718127916891,0.35920862,66511.0,66508.0,0.00568513]
[1718127917311,0.35920862,66511.0,66506.0,0.00085]
[1718127917533,0.35920862,66511.0,66507.0,0.08696767]
[1718127917756,0.35920862,66511.0,66509.0,0.002]
[1718127918182,0.35920862,66511.0,66506.0,0.00085]
[1718127918395,0.35920862,66511.0,66510.0,0.00568513]
[1718127918613,0.35920862,66511.0,66506.0,0.00285]
[1718127918818,0.35920862,66511.0,66510.0,0.00568513]
[1718127919043,0.35920862,66511.0,66506.0,0.00285]
[1718127919258,0.35920862,66511.0,66510.0,0.00568513]
[1718127919784,0.35920862,66511.0,66506.0,0.00085]
[1718127920017,0.35920862,66511.0,66510.0,0.00568513]
[1718127920255,0.35920862,66511.0,66506.0,0.00085]
[1718127920453,0.35920862,66511.0,66510.0,0.00768513]
[1718127920656,0.35920862,66511.0,66510.0,0.002]
[1718127920866,0.36920862,66511.0,66510.0,0.00768513]
[1718127921090,0.16036,66507.0,66506.0,0.00085]
[1718127922387,0.16036,66507.0,66506.0,0.00285]
[1718127923694,0.16036,66507.0,66506.0,0.00085]
[1718127924343,0.16036,66507.0,66506.0,0.00285]
[1718127924804,0.16036,66507.0,66506.0,0.00085]
[1718127925224,0.16036,66507.0,66506.0,0.00285]
[1718127925443,0.51386,66507.0,66506.0,0.00285]
[1718127926768,0.51386,66507.0,66506.0,0.00085]
[1718127927188,0.51386,66507.0,66506.0,0.00285]
[1718127928904,0.71356862,66507.0,66506.0,0.00285]
[1718127929120,0.78526862,66507.0,66506.0,0.00285]
[1718127929539,0.58526862,66507.0,66506.0,0.00285]
[1718127931271,0.78526862,66507.0,66506.0,0.00285]
[1718127933500,0.58526862,66507.0,66506.0,0.00285]
[1718127933708,0.78526862,66507.0,66506.0,0.00285]
[1718127933937,0.92958855,66507.0,66506.0,0.00285]
[1718127934158,1.57462848,66507.0,66506.0,0.00285]
[1718127934385,1.59762848,66507.0,66506.0,0.00285]
[1718127934604,1.70206824,66507.0,66506.0,0.00285]
[1718127935071,1.70206824,66507.0,66506.0,0.00085]
[1718127935487,1.70506824,66507.0,66506.0,0.00085]
[1718127935933,2.16098824,66507.0,66506.0,0.00085]
[1718127936174,2.76498824,66507.0,66506.0,0.00285]
[1718127936385,2.79007429,66507.0,66506.0,0.00285]
[1718127936593,3.07696622,66507.0,66506.0,0.00285]
[1718127936795,3.16962371,66507.0,66506.0,0.00285]
[1718127937244,3.10205512,66507.0,66506.0,0.00285]
[1718127937939,3.10017724,66507.0,66506.0,0.00285]
[1718127938168,3.14516016,66507.0,66506.0,0.00285]
[1718127938644,1.0619,66498.0,66497.0,0.00085]
[1718127938860,1.82568851,66498.0,66497.0,0.00085]
[1718127939077,2.24019315,66498.0,66497.0,0.00085]
[1718127939286,1.92815006,66498.0,66497.0,0.00085]
[1718127939510,2.08635006,66498.0,66497.0,0.00085]
[1718127940225,2.23111571,66498.0,66497.0,0.00085]
[1718127941381,2.12820844,66498.0,66497.0,0.00085]
[1718127941841,1.45876855,66498.0,66497.0,0.00185]
[1718127942102,0.26638,66498.0,66497.0,0.00185]
[1718127942336,0.33808,66498.0,66497.0,0.00185]
[1718127942604,0.26638,66498.0,66497.0,0.00730409]
[1718127942822,0.33808,66498.0,66497.0,0.00730409]
[1718127943685,0.26038,66498.0,66497.0,0.00930409]
[1718127943906,0.33208,66498.0,66497.0,0.00930409]
[1718127944116,0.47639993,66498.0,66497.0,0.00630409]
[1718127944339,0.85094078,66498.0,66497.0,0.00085]
[1718127944810,0.26038,66498.0,66497.0,0.00085]
[1718127945069,0.33208,66498.0,66497.0,0.00185]
[1718127945270,0.33208,66498.0,66497.0,0.00085]
[1718127945503,0.33208,66498.0,66497.0,0.00285]
[1718127945968,0.33208,66498.0,66497.0,0.00085]
[1718127946480,0.40423996,66498.0,66497.0,0.00185]
[1718127946938,0.51173996,66498.0,66497.0,0.00185]
[1718127948572,0.51173996,66498.0,66497.0,0.00689883]
[1718127949046,0.5114483,66498.0,66497.0,0.00689883]
[1718127952532,0.5114483,66498.0,66497.0,0.00589883]
[1718127952988,0.5114483,66498.0,66497.0,0.00689883]
[1718127953426,1.65073685,66498.0,66497.0,0.00689883]
[1718127953660,1.65073685,66498.0,66497.0,0.00185]
[1718127954312,1.35102823,66498.0,66497.0,0.00085]
[1718127954541,1.55073685,66498.0,66497.0,0.00185]
[1718127955357,1.35102823,66498.0,66497.0,0.00185]
[1718127955765,1.55073685,66498.0,66497.0,0.00085]
[1718127956045,1.65073685,66498.0,66497.0,0.00085]
[1718127956274,1.66173685,66498.0,66497.0,0.00185]
[1718127962120,1.75608771,66498.0,66497.0,0.00185]
[1718127962373,2.05684771,66498.0,66497.0,0.00185]
[1718127962617,2.27212221,66498.0,66497.0,0.00185]
[1718127962821,2.58415373,66498.0,66497.0,0.00185]
[1718127963290,2.40495373,66498.0,66497.0,0.00185]
[1718127963509,2.58415373,66498.0,66497.0,0.00185]
[1718127963729,2.57315373,66498.0,66497.0,0.00085]
[1718127964196,2.59415373,66498.0,66497.0,0.00285]
[1718127964413,0.85271429,66498.0,66497.0,0.00285]
[1718127964622,0.73838579,66498.0,66497.0,0.00285]
[1718127964843,0.42635427,66498.0,66497.0,0.007985]
[1718127965059,0.28203434,66498.0,66497.0,0.00285]
[1718127965276,0.28203434,66498.0,66497.0,0.00185]
[1718127965503,0.28203434,66498.0,66497.0,0.006985]
[1718127965504,0.260326,66498.0,66497.0,0.006985]
[1718127965718,0.263326,66498.0,66497.0,0.35665]
[1718127965952,0.263326,66498.0,66497.0,0.361785]
[1718127966205,0.273326,66498.0,66497.0,0.362785]
[1718127966417,0.022946,66498.0,66497.0,0.36307638]
[1718127966647,0.012946,66498.0,66497.0,0.42446479]
[1718127966863,0.012946,66498.0,66497.0,0.42417341]
[1718127967077,0.000946,66498.0,66497.0,0.42317341]
[1718127967504,0.001946,66498.0,66497.0,0.42346479]
[1718127967729,0.001946,66498.0,66497.0,0.42404783]
[1718127967958,0.000946,66498.0,66497.0,0.52074586]
[1718127968172,0.000946,66498.0,66497.0,0.5233289]
[1718127968394,0.000946,66498.0,66497.0,0.5213289]
[1718127968834,0.000946,66498.0,66497.0,0.52545448]
[1718127969049,0.072646,66498.0,66497.0,0.52545448]
[1718127969294,0.072646,66498.0,66497.0,0.52245448]
[1718127969519,0.072646,66498.0,66497.0,0.362785]
[1718127969700,0.072646,66498.0,66497.0,0.365785]
[1718127970139,0.072646,66498.0,66497.0,0.360785]
[1718127970357,0.072646,66498.0,66497.0,0.36107638]
[1718127970581,0.000946,66498.0,66497.0,0.36607638]
[1718127970799,0.000946,66498.0,66497.0,0.36465942]
[1718127971009,0.000946,66498.0,66497.0,0.52400946]
[1718127971267,0.000946,66498.0,66497.0,0.52600946]
[1718127971746,0.000946,66498.0,66497.0,0.52600306]
[1718127972017,0.000946,66498.0,66497.0,0.52100306]
[1718127973019,0.000946,66498.0,66497.0,0.66578474]
[1718127973294,0.000946,66498.0,66497.0,0.66278474]
[1718127973569,0.000946,66498.0,66497.0,0.66478474]
[1718127973837,0.000946,66498.0,66497.0,0.66578474]
[1718127974118,0.000946,66498.0,66497.0,0.66778474]